fUSD/lending_fUSD_20250217
["ID","MTS","AMOUNT","RATE_DAILY","PERIOD"]
[353344799,1739785850044,-500.0,0.00013698,2]
[353344800,1739785850053,-500.46716411,0.00013698,2]
[353344801,1739785850062,-1283.9,0.00013698,2]
[353344802,1739785850071,-375.89203792,0.00013698,2]
[353344803,1739785850080,-500.0,0.00013698,2]
[353344804,1739785850090,-500.0,0.00013698,2]
[353344805,1739785850099,-648.74,0.00013698,2]
[353344806,1739785850108,-500.0,0.00013698,2]
[353344807,1739785850118,-500.0,0.00013698,2]
[353344808,1739785850128,-637.17949339,0.00013698,2]
[353344809,1739785850139,-4068.91,0.00013698,2]
[353344810,1739785850150,-505.90333943,0.00013698,2]
[353344811,1739785850159,-500.0,0.00013698,2]
[353344812,1739785850169,-775.3,0.00013698,2]
[353344813,1739785850179,-500.0,0.00013698,2]
[353344814,1739785850188,-607.37,0.00013698,2]
[353344815,1739785850198,-500.0,0.00013698,2]
[353344816,1739785850208,-500.0,0.00013698,2]
[353344817,1739785850218,-260.26621049,0.00013698,2]
[353344818,1739785850227,-505.36876175,0.00013698,2]
[353344819,1739785850237,-1835.03,0.00013698,2]
[353344820,1739785850246,-500.0,0.00013698,2]
[353344821,1739785850256,-500.0,0.00013698,2]
[353344822,1739785850265,-500.0,0.00013698,2]
[353344823,1739785850275,-500.0,0.00013698,2]
[353344824,1739785850284,-385.38738836,0.00013698,2]
[353344825,1739785850294,-1245.85,0.00013698,2]
[353344826,1739785850303,-500.0,0.00013698,2]
[353344827,1739785850313,-1100.33,0.00013698,2]
[353344828,1739785850322,-505.63642195,0.00013698,2]
[353344829,1739785850332,-500.0,0.00013698,2]
[353344830,1739785850342,-500.0,0.00013698,2]
[353344831,1739785850352,-502.86909019,0.00013698,2]
[353344832,1739785850362,-1241.54,0.00013698,2]
[353344833,1739785850371,-500.0,0.00013698,2]
[353344834,1739785850380,-500.0,0.00013698,2]
[353344835,1739785850390,-500.0,0.00013698,2]
[353344836,1739785850399,-500.0,0.00013698,2]
[353344837,1739785850410,-500.0,0.00013698,2]
[353344838,1739785850420,-2044.81,0.00013698,2]
[353344839,1739785850430,-500.0,0.00013698,2]
[353344840,1739785850439,-500.0,0.00013698,2]
[353344841,1739785850449,-500.0,0.00013698,2]
[353344842,1739785850459,-500.0,0.00013698,2]
[353344843,1739785850468,-968.85,0.00013698,2]
[353344844,1739785850477,-799.3,0.00013698,2]
[353344845,1739785850487,-816.31,0.00013698,2]
[353344846,1739785850497,-997.23,0.00013698,2]
[353344847,1739785850506,-500.0,0.00013698,2]
[353344848,1739785850516,-663.34,0.00013698,2]
[353344849,1739785850525,-1047.36,0.00013698,2]
[353344850,1739785850535,-500.0,0.00013699,7]
[353344851,1739785850544,-200.0,0.00013699,2]
[353344852,1739785850555,-170.13,0.00013699,2]
[353344853,1739785850565,-300.0,0.00013699,2]
[353344854,1739785850575,-300.0,0.00013699,2]
[353344855,1739785850585,-237.48654384,0.00013699,2]
[353344856,1739785850594,-615717.14220544,0.000137,3]
[353344857,1739785851001,-28292.30672293,0.000137,3]
[353344858,1739785851028,-534.82997,0.000137,3]
[353344859,1739785851047,-578.4682734,0.000137,3]
[353344860,1739785851058,-10324.94023247,0.000137,3]
[353344861,1739785851745,-1110.0,0.00011961,2]
[353344862,1739785851755,-1245.54482196,0.000137,3]
[353344863,1739785851767,-292.96525422,0.000137,3]
[353344864,1739785852361,-500.0,0.00013698,2]
[353344865,1739785852370,-502.55726673,0.00013698,2]
[353344866,1739785852379,-500.0,0.00013698,2]
[353344867,1739785852388,-379.16408652,0.000137,3]
[353344868,1739785852849,-150.0,0.00011961,2]
[353344869,1739785852859,-500.0,0.00013698,2]
[353344870,1739785852868,-37.72684097,0.00013698,2]
[353344914,1739786671058,150.0,0.00019363,120]
[353344915,1739786732103,150.0,0.00019332,120]
[353344917,1739786790761,150.0,0.00019938,120]
[353344926,1739786854495,-7900.0,8.973e-05,2]
[353344998,1739787038021,-300.0,9.999e-05,2]
[353344999,1739787038031,-550.0,0.0001,2]
[353345000,1739787038040,-476.41606739,0.0001,2]
[353345001,1739787038051,-509.45,0.0001,2]
[353345002,1739787038061,-503.97,0.0001,2]
[353345003,1739787038071,-509.29,0.0001,2]
[353345004,1739787038080,-501.44,0.0001,2]
[353345005,1739787038091,-509.31,0.0001,2]
[353345006,1739787038100,-501.98,0.0001,2]
[353345007,1739787038110,-506.85,0.0001,2]
[353345008,1739787038119,-505.5,0.0001,2]
[353345009,1739787038129,-500.45,0.0001,2]
[353345010,1739787038139,-506.69,0.0001,2]
[353345011,1739787038148,-492.85,0.0001,2]
[353345012,1739787038157,-490.07,0.0001,2]
[353345013,1739787038167,-502.76,0.0001,2]
[353345014,1739787038176,-490.5,0.0001,2]
[353345015,1739787038185,-500.83,0.0001,2]
[353345016,1739787038194,-507.1,0.0001,2]
[353345017,1739787038203,-503.47,0.0001,2]
[353345018,1739787038213,-506.14,0.0001,2]
[353345019,1739787038223,-500.42,0.0001,2]
[353345020,1739787038233,-504.96,0.0001,2]
[353345021,1739787038242,-502.06,0.0001,2]
[353345022,1739787038251,-492.04,0.0001,2]
[353345023,1739787038261,-509.55,0.0001,2]
[353345024,1739787038270,-497.56,0.0001,2]
[353345025,1739787038280,-508.03,0.0001,2]
[353345026,1739787038289,-496.11,0.0001,2]
[353345028,1739787038299,-502.58,0.0001,2]
[353345030,1739787038308,-493.79,0.0001,2]
[353345031,1739787038318,-495.83,0.0001,2]
[353345032,1739787038327,-500.52,0.0001,2]
[353345033,1739787038337,-508.8,0.0001,2]
[353345034,1739787038346,-508.52,0.0001,2]
[353345035,1739787038356,-491.09,0.0001,2]
[353345036,1739787038367,-502.45,0.0001,2]
[353345037,1739787038376,-493.67,0.0001,2]
[353345038,1739787038385,-498.08,0.0001,2]
[353345039,1739787038395,-498.42,0.0001,2]
[353345040,1739787038404,-504.67,0.0001,2]
[353345041,1739787038414,-499.82,0.0001,2]
[353345042,1739787038423,-900.0,0.00010058,2]
[353345043,1739787038432,-1000.0,0.00010058,2]
[353345044,1739787038442,-253.8,0.00010137,2]
[353345045,1739787038452,-849.09,0.00010181,2]
[353345046,1739787038461,-1000.0,0.00010315,2]
[353345047,1739787038470,-163.91,0.00010959,2]
[353345048,1739787038482,-420.0,0.00010999,2]
[353345049,1739787038491,-150.0,0.00011,2]
[353345050,1739787038500,-500.0,0.00011154,2]
[353345051,1739787038510,-1494.34370515,0.00011169,2]
[353345052,1739787038519,-900.0,0.00011428,2]
[353345053,1739787038528,-1000.0,0.00011428,2]
[353345055,1739787038538,-1000.0,0.00011604,2]
[353345057,1739787038547,-3917.0,0.0001185,2]
[353345059,1739787038556,-1009.0,0.0001185,2]
[353345061,1739787038565,-150.0,0.0001185,2]
[353345063,1739787038574,-683.685,0.0001185,2]
[353345065,1739787038584,-600.0,0.00012,2]
[353345067,1739787038593,-216.800397,0.00012022,3]
[353345069,1739787038602,-231.0,0.000121,2]
[353345070,1739787038611,-367.0,0.000121,2]
[353345071,1739787038620,-10558.31467149,0.00012246,2]
[353345072,1739787040064,-8676.8410586,0.00012246,2]
[353345073,1739787040331,-966.9082292,0.00012246,2]
[353345075,1739787043102,-3697.93604071,0.00012246,2]
[353345076,1739787043113,-250.0,0.00012247,2]
[353345077,1739787043123,-2026.0,0.00012331,2]
[353345078,1739787043133,-1274.0,0.00012331,2]
[353345079,1739787043146,-150.0,0.00012331,2]
[353345080,1739787043157,-638.0,0.00012331,2]
[353345081,1739787043167,-569.0,0.00012331,2]
[353345082,1739787043177,-1787.0,0.00012331,2]
[353345083,1739787043187,-2957.0,0.00012331,2]
[353345084,1739787043196,-908.0,0.00012331,2]
[353345085,1739787043206,-784.0,0.00012331,2]
[353345086,1739787043215,-1266.0,0.00012331,2]
[353345087,1739787043224,-539.0,0.00012331,2]
[353345088,1739787043237,-4029.0,0.00012331,2]
[353345089,1739787043247,-849.09,0.00012445,2]
[353345090,1739787043256,-150.0,0.0001248,2]
[353345091,1739787043267,-678.34298185,0.00012598,2]
[353345092,1739787043276,-150.0,0.000126,2]
[353345093,1739787043286,-257.43,0.00012735,2]
[353345094,1739787043296,-500.0,0.00012798,2]
[353345095,1739787043305,-500.0,0.00012798,2]
[353345096,1739787043315,-500.0,0.00012798,2]
[353345097,1739787043325,-500.0,0.00012798,2]
[353345098,1739787043334,-500.0,0.00012798,2]
[353345099,1739787043344,-500.0,0.00012798,2]
[353345100,1739787043353,-500.0,0.00012798,2]
[353345101,1739787043363,-500.0,0.00012798,2]
[353345102,1739787043372,-500.0,0.00012798,2]
[353345103,1739787043382,-500.0,0.00012798,2]
[353345104,1739787043391,-500.0,0.00012798,2]
[353345105,1739787043401,-500.0,0.00012798,2]
[353345106,1739787043410,-500.0,0.00012798,2]
[353345107,1739787043419,-500.0,0.00012798,2]
[353345109,1739787043670,-500.0,0.00012798,2]
[353345110,1739787043680,-500.0,0.00012798,2]
[353345111,1739787043690,-900.0,0.00012798,2]
[353345112,1739787043699,-1000.0,0.00012798,2]
[353345113,1739787043709,-1000.0,0.00012894,2]
[353345114,1739787043718,-156.923973,0.0001323,3]
[353345115,1739787043729,-483.00103845,0.00013425,2]
[353345116,1739787043738,-483.00103845,0.00013479,2]
[353345117,1739787043748,-2729.469,0.00013515,2]
[353345118,1739787043758,-174.918,0.00013517,2]
[353345119,1739787043767,-483.00103845,0.00013534,2]
[353345120,1739787043776,-4000.0,0.0001356,2]
[353345121,1739787043786,-9045.44467461,0.00013598,2]
[353345122,1739787043795,-19982.86359936,0.00013598,2]
[353345123,1739787043804,-247.14410513,0.00013598,2]
[353345124,1739787043813,-158.47253354,0.00013598,2]
[353345125,1739787043823,-247.14410511,0.00013599,2]
[353345126,1739787043832,-495.83,0.000136,2]
[353345127,1739787043842,-162.35028127,0.000136,2]
[353345128,1739787043850,-1083.0,0.000136,2]
[353345129,1739787043859,-247.14410511,0.000136,2]
[353345130,1739787043869,-483.00103845,0.00013616,2]
[353345131,1739787043879,-425.1618893,0.0001365,2]
[353345132,1739787043889,-5844.60777426,0.00013663,2]
[353345133,1739787043899,-9045.44467458,0.00013671,2]
[353345134,1739787043908,-19982.86359927,0.00013671,2]
[353345135,1739787043918,-483.00103845,0.00013671,2]
[353345136,1739787043928,-200.16185478,0.0001369,2]
[353345137,1739787043937,-228.45327663,0.00013698,2]
[353345138,1739787043946,-355.43934401,0.00013698,2]
[353345139,1739787043956,-500.0,0.00013698,2]
[353345140,1739787043965,-502.10767444,0.00013698,2]
[353345141,1739787043975,-501.61561555,0.00013698,2]
[353345142,1739787043986,-501.21266978,0.00013698,2]
[353345143,1739787043995,-2000.0,0.00013698,3]
[353345144,1739787044005,-502.43468983,0.00013698,2]
[353345145,1739787044015,-321.5241889,0.00013698,2]
[353345146,1739787044025,-156.081307,0.00013698,2]
[353345147,1739787044035,-597.039582,0.00013698,2]
[353345148,1739787044045,-728.976945,0.00013698,2]
[353345149,1739787044059,-500.0,0.00013698,2]
[353345150,1739787044069,-500.0,0.00013698,2]
[353345151,1739787044079,-500.0,0.00013698,2]
[353345152,1739787044089,-500.0,0.00013698,2]
[353345153,1739787044098,-163.607122,0.00013698,2]
[353345154,1739787044108,-500.0,0.00013698,2]
[353345155,1739787044118,-500.0,0.00013698,2]
[353345156,1739787044128,-500.0,0.00013698,2]
[353345157,1739787044137,-500.0,0.00013698,2]
[353345158,1739787044149,-500.0,0.00013698,2]
[353345159,1739787044158,-500.0,0.00013698,2]
[353345160,1739787044168,-500.0,0.00013698,2]
[353345161,1739787044178,-500.0,0.00013698,2]
[353345162,1739787044188,-500.0,0.00013698,2]
[353345163,1739787044197,-500.0,0.00013698,2]
[353345164,1739787044207,-500.0,0.00013698,2]
[353345165,1739787044216,-500.0,0.00013698,2]
[353345166,1739787044226,-500.0,0.00013698,2]
[353345167,1739787044237,-500.0,0.00013698,2]
[353345168,1739787044247,-500.0,0.00013698,2]
[353345169,1739787044257,-507.4633239,0.00013698,2]
[353345170,1739787044266,-500.0,0.00013698,2]
[353345171,1739787044275,-500.0,0.00013698,2]
[353345172,1739787044285,-500.0,0.00013698,2]
[353345173,1739787044295,-500.0,0.00013698,2]
[353345174,1739787044304,-500.0,0.00013698,2]
[353345175,1739787044314,-500.0,0.00013698,2]
[353345176,1739787044323,-500.0,0.00013698,2]
[353345177,1739787044333,-500.0,0.00013698,2]
[353345178,1739787044342,-500.0,0.00013698,2]
[353345179,1739787044352,-500.0,0.00013698,2]
[353345180,1739787044362,-500.0,0.00013698,2]
[353345181,1739787044372,-500.0,0.00013698,2]
[353345182,1739787044381,-500.0,0.00013698,2]
[353345183,1739787044391,-241.39710075,0.00013698,2]
[353345184,1739787044400,-500.0,0.00013698,2]
[353345185,1739787044410,-500.0,0.00013698,2]
[353345186,1739787044419,-514.54,0.00013698,2]
[353345187,1739787044428,-500.0,0.00013698,2]
[353345188,1739787044437,-500.0,0.00013698,2]
[353345189,1739787044447,-500.0,0.00013698,2]
[353345190,1739787044456,-500.0,0.00013698,2]
[353345191,1739787044466,-500.0,0.00013698,2]
[353345192,1739787044476,-500.0,0.00013698,2]
[353345193,1739787044486,-500.0,0.00013698,2]
[353345194,1739787044496,-507.47859958,0.00013698,2]
[353345195,1739787044507,-514.94,0.00013698,2]
[353345196,1739787044516,-500.0,0.00013698,2]
[353345197,1739787044526,-502.10833307,0.00013698,2]
[353345198,1739787044535,-500.0,0.00013698,2]
[353345199,1739787044545,-424.52987012,0.00013698,2]
[353345200,1739787044554,-500.0,0.00013698,2]
[353345201,1739787044563,-500.0,0.00013698,2]
[353345202,1739787044572,-500.0,0.00013698,2]
[353345203,1739787044582,-500.0,0.00013698,2]
[353345204,1739787044592,-500.0,0.00013698,2]
[353345205,1739787044602,-500.0,0.00013698,2]
[353345206,1739787044611,-500.0,0.00013698,2]
[353345207,1739787044621,-177.879403,0.00013698,2]
[353345208,1739787044631,-597.4700078,0.00013698,2]
[353345209,1739787044641,-500.0,0.00013698,2]
[353345210,1739787044650,-500.0,0.00013698,2]
[353345211,1739787044659,-500.0,0.00013698,2]
[353345212,1739787044669,-500.0,0.00013698,2]
[353345213,1739787044679,-189.893703,0.00013698,2]
[353345214,1739787044689,-500.0,0.00013698,2]
[353345215,1739787044699,-500.0,0.00013698,2]
[353345216,1739787044708,-500.0,0.00013698,2]
[353345217,1739787044718,-500.0,0.00013698,2]
[353345218,1739787044728,-623.05,0.00013698,2]
[353345219,1739787044738,-500.0,0.00013698,2]
[353345220,1739787044747,-500.0,0.00013698,2]
[353345221,1739787044757,-500.0,0.00013698,2]
[353345222,1739787044767,-692.58,0.00013698,2]
[353345223,1739787044776,-500.0,0.00013698,2]
[353345224,1739787044787,-500.0,0.00013698,2]
[353345225,1739787044798,-500.0,0.00013698,2]
[353345226,1739787044808,-500.0,0.00013698,2]
[353345227,1739787044818,-500.0,0.00013698,2]
[353345228,1739787044827,-500.0,0.00013698,2]
[353345229,1739787044837,-500.0,0.00013698,2]
[353345230,1739787044847,-922.95,0.00013698,2]
[353345231,1739787044857,-500.0,0.00013698,2]
[353345232,1739787044866,-612.62,0.00013698,2]
[353345233,1739787044876,-500.0,0.00013698,2]
[353345234,1739787044886,-500.0,0.00013698,2]
[353345235,1739787044895,-500.0,0.00013698,2]
[353345236,1739787044904,-500.0,0.00013698,2]
[353345237,1739787044914,-500.0,0.00013698,2]
[353345238,1739787044924,-500.0,0.00013698,2]
[353345239,1739787044933,-500.0,0.00013698,2]
[353345240,1739787044942,-500.0,0.00013698,2]
[353345241,1739787044952,-500.0,0.00013698,2]
[353345242,1739787044962,-500.0,0.00013698,2]
[353345243,1739787044971,-500.0,0.00013698,2]
[353345244,1739787044983,-500.0,0.00013698,2]
[353345245,1739787044992,-500.0,0.00013698,2]
[353345246,1739787045002,-500.0,0.00013698,2]
[353345247,1739787045012,-500.0,0.00013698,2]
[353345248,1739787045021,-500.0,0.00013698,2]
[353345249,1739787045041,-500.0,0.00013698,2]
[353345250,1739787045051,-500.0,0.00013698,2]
[353345251,1739787045062,-500.0,0.00013698,2]
[353345252,1739787045075,-500.0,0.00013698,2]
[353345253,1739787045085,-500.0,0.00013698,2]
[353345254,1739787045095,-527.24,0.00013698,2]
[353345255,1739787045104,-500.0,0.00013698,2]
[353345256,1739787045115,-500.0,0.00013698,2]
[353345257,1739787045125,-509.67127023,0.00013698,2]
[353345258,1739787045134,-500.0,0.00013698,2]
[353345259,1739787045146,-500.0,0.00013698,2]
[353345260,1739787045155,-500.0,0.00013698,2]
[353345261,1739787045165,-500.0,0.00013698,2]
[353345262,1739787045174,-500.0,0.00013698,2]
[353345263,1739787045184,-500.0,0.00013698,2]
[353345264,1739787045194,-500.0,0.00013698,2]
[353345265,1739787045203,-500.0,0.00013698,2]
[353345266,1739787045213,-500.0,0.00013698,2]
[353345267,1739787045222,-500.0,0.00013698,2]
[353345268,1739787045234,-500.0,0.00013698,2]
[353345269,1739787045243,-500.0,0.00013698,2]
[353345270,1739787045253,-623.73,0.00013698,2]
[353345271,1739787045262,-500.0,0.00013698,2]
[353345272,1739787045272,-500.0,0.00013698,2]
[353345273,1739787045282,-500.0,0.00013698,2]
[353345274,1739787045291,-500.0,0.00013698,2]
[353345275,1739787045300,-500.0,0.00013698,2]
[353345276,1739787045310,-500.0,0.00013698,2]
[353345277,1739787045319,-500.0,0.00013698,2]
[353345278,1739787045329,-500.0,0.00013698,2]
[353345279,1739787045339,-500.0,0.00013698,2]
[353345280,1739787045348,-500.0,0.00013698,2]
[353345281,1739787045357,-500.0,0.00013698,2]
[353345282,1739787045367,-500.0,0.00013698,2]
[353345283,1739787045376,-500.0,0.00013698,2]
[353345284,1739787045385,-500.0,0.00013698,2]
[353345285,1739787045395,-500.0,0.00013698,2]
[353345286,1739787045405,-500.0,0.00013698,2]
[353345287,1739787045414,-500.0,0.00013698,2]
[353345288,1739787045424,-500.0,0.00013698,2]
[353345289,1739787045433,-500.0,0.00013698,2]
[353345290,1739787045443,-500.0,0.00013698,2]
[353345291,1739787045452,-500.0,0.00013698,2]
[353345292,1739787045461,-501.04964395,0.00013698,2]
[353345293,1739787045471,-500.0,0.00013698,2]
[353345294,1739787045481,-500.0,0.00013698,2]
[353345295,1739787045491,-500.0,0.00013698,2]
[353345296,1739787045500,-500.0,0.00013698,2]
[353345297,1739787045509,-500.0,0.00013698,2]
[353345298,1739787045520,-1016.39,0.00013698,2]
[353345299,1739787045530,-500.0,0.00013698,2]
[353345300,1739787045539,-500.0,0.00013698,2]
[353345301,1739787045549,-500.0,0.00013698,2]
[353345302,1739787045558,-500.0,0.00013698,2]
[353345303,1739787045568,-500.0,0.00013698,2]
[353345304,1739787045577,-500.0,0.00013698,2]
[353345305,1739787045587,-500.0,0.00013698,2]
[353345306,1739787045596,-500.0,0.00013698,2]
[353345307,1739787045606,-500.0,0.00013698,2]
[353345308,1739787045616,-521.88424683,0.00013698,2]
[353345309,1739787045626,-500.0,0.00013698,2]
[353345310,1739787045635,-500.0,0.00013698,2]
[353345311,1739787045644,-500.0,0.00013698,2]
[353345313,1739787045653,-500.0,0.00013698,2]
[353345314,1739787045663,-500.0,0.00013698,2]
[353345315,1739787045672,-500.0,0.00013698,2]
[353345316,1739787045681,-500.0,0.00013698,2]
[353345317,1739787045690,-500.0,0.00013698,2]
[353345318,1739787045700,-500.0,0.00013698,2]
[353345319,1739787045709,-500.0,0.00013698,2]
[353345320,1739787045719,-505.1213862,0.00013698,2]
[353345321,1739787045728,-500.0,0.00013698,2]
[353345322,1739787045737,-500.0,0.00013698,2]
[353345323,1739787045747,-500.0,0.00013698,2]
[353345324,1739787045756,-500.0,0.00013698,2]
[353345325,1739787045766,-500.0,0.00013698,2]
[353345326,1739787045775,-500.0,0.00013698,2]
[353345327,1739787045785,-500.0,0.00013698,2]
[353345328,1739787045795,-500.0,0.00013698,2]
[353345329,1739787045804,-500.0,0.00013698,2]
[353345330,1739787045814,-500.0,0.00013698,2]
[353345331,1739787045823,-500.0,0.00013698,2]
[353345332,1739787045834,-500.0,0.00013698,2]
[353345333,1739787045844,-500.0,0.00013698,2]
[353345334,1739787045853,-500.0,0.00013698,2]
[353345335,1739787045863,-500.0,0.00013698,2]
[353345336,1739787045873,-500.0,0.00013698,2]
[353345337,1739787045883,-500.0,0.00013698,2]
[353345338,1739787045892,-500.0,0.00013698,2]
[353345339,1739787045902,-632.23,0.00013698,2]
[353345340,1739787045911,-500.0,0.00013698,2]
[353345341,1739787045920,-500.0,0.00013698,2]
[353345342,1739787045930,-500.0,0.00013698,2]
[353345343,1739787045939,-500.0,0.00013698,2]
[353345344,1739787045949,-878.57,0.00013698,2]
[353345345,1739787045958,-500.0,0.00013698,2]
[353345346,1739787045968,-500.0,0.00013698,2]
[353345347,1739787045979,-500.0,0.00013698,2]
[353345348,1739787045989,-500.0,0.00013698,2]
[353345349,1739787045999,-500.0,0.00013698,2]
[353345350,1739787046008,-500.0,0.00013698,2]
[353345351,1739787046018,-500.0,0.00013698,2]
[353345352,1739787046027,-500.0,0.00013698,2]
[353345353,1739787046037,-500.0,0.00013698,2]
[353345354,1739787046047,-500.0,0.00013698,2]
[353345355,1739787046059,-500.0,0.00013698,2]
[353345356,1739787046068,-500.0,0.00013698,2]
[353345357,1739787046078,-500.0,0.00013698,2]
[353345358,1739787046088,-361.95770795,0.00013698,2]
[353345359,1739787046099,-500.0,0.00013698,2]
[353345360,1739787046108,-500.0,0.00013698,2]
[353345361,1739787046118,-500.0,0.00013698,2]
[353345362,1739787046127,-500.0,0.00013698,2]
[353345363,1739787046137,-500.0,0.00013698,2]
[353345364,1739787046147,-500.0,0.00013698,2]
[353345365,1739787046158,-500.0,0.00013698,2]
[353345366,1739787046167,-500.0,0.00013698,2]
[353345367,1739787046177,-500.0,0.00013698,2]
[353345368,1739787046187,-500.0,0.00013698,2]
[353345369,1739787046197,-500.0,0.00013698,2]
[353345370,1739787046206,-500.0,0.00013698,2]
[353345371,1739787046216,-500.0,0.00013698,2]
[353345372,1739787046225,-500.0,0.00013698,2]
[353345373,1739787046237,-500.0,0.00013698,2]
[353345374,1739787046247,-500.0,0.00013698,2]
[353345376,1739787046256,-500.0,0.00013698,2]
[353345377,1739787046266,-500.0,0.00013698,2]
[353345378,1739787046275,-500.0,0.00013698,2]
[353345379,1739787046284,-500.0,0.00013698,2]
[353345380,1739787046294,-866.38,0.00013698,2]
[353345381,1739787046303,-500.0,0.00013698,2]
[353345382,1739787046313,-500.0,0.00013698,2]
[353345383,1739787046323,-500.0,0.00013698,2]
[353345384,1739787046332,-500.0,0.00013698,2]
[353345385,1739787046342,-500.0,0.00013698,2]
[353345386,1739787046351,-500.0,0.00013698,2]
[353345387,1739787046360,-500.0,0.00013698,2]
[353345388,1739787046370,-500.0,0.00013698,2]
[353345389,1739787046379,-500.0,0.00013698,2]
[353345390,1739787046388,-500.0,0.00013698,2]
[353345391,1739787046398,-500.0,0.00013698,2]
[353345392,1739787046407,-500.0,0.00013698,2]
[353345393,1739787046417,-500.0,0.00013698,2]
[353345394,1739787046427,-500.0,0.00013698,2]
[353345395,1739787046436,-500.0,0.00013698,2]
[353345396,1739787046446,-500.0,0.00013698,2]
[353345397,1739787046457,-500.0,0.00013698,2]
[353345398,1739787046467,-500.0,0.00013698,2]
[353345399,1739787046477,-824.39,0.00013698,2]
[353345400,1739787046488,-500.0,0.00013698,2]
[353345401,1739787046497,-500.0,0.00013698,2]
[353345402,1739787046507,-500.0,0.00013698,2]
[353345403,1739787046516,-500.0,0.00013698,2]
[353345404,1739787046526,-500.0,0.00013698,2]
[353345405,1739787046537,-500.0,0.00013698,2]
[353345406,1739787046546,-542.34,0.00013698,2]
[353345407,1739787046556,-500.0,0.00013698,2]
[353345408,1739787046565,-500.0,0.00013698,2]
[353345409,1739787046575,-500.0,0.00013698,2]
[353345410,1739787046586,-500.0,0.00013698,2]
[353345411,1739787046597,-500.0,0.00013698,2]
[353345412,1739787046607,-500.0,0.00013698,2]
[353345413,1739787046617,-500.0,0.00013698,2]
[353345414,1739787046628,-595.91,0.00013698,2]
[353345415,1739787046637,-500.0,0.00013698,2]
[353345416,1739787046647,-500.0,0.00013698,2]
[353345417,1739787046656,-500.0,0.00013698,2]
[353345418,1739787046666,-500.0,0.00013698,2]
[353345419,1739787046675,-500.0,0.00013698,2]
[353345420,1739787046685,-500.0,0.00013698,2]
[353345421,1739787046694,-500.0,0.00013698,2]
[353345422,1739787046704,-509.85967177,0.00013698,2]
[353345423,1739787046713,-500.0,0.00013698,2]
[353345424,1739787046723,-500.0,0.00013698,2]
[353345425,1739787046732,-565.43,0.00013698,2]
[353345426,1739787046741,-500.0,0.00013698,2]
[353345427,1739787046758,-500.0,0.00013698,2]
[353345428,1739787046772,-500.0,0.00013698,2]
[353345429,1739787046782,-500.0,0.00013698,2]
[353345430,1739787046791,-500.0,0.00013698,2]
[353345431,1739787046801,-500.0,0.00013698,2]
[353345432,1739787046811,-500.0,0.00013698,2]
[353345433,1739787046820,-500.0,0.00013698,2]
[353345434,1739787046830,-500.0,0.00013698,2]
[353345435,1739787046840,-500.0,0.00013698,2]